bitfinex/quotes_ETHUSD_20220115
["timestamp","ask_amount","ask_price","bid_price","bid_amount"]
[1642249897600,3.42958305,3309.1,3309.0,0.72660235]
[1642249898400,3.41884905,3309.1,3309.0,0.72660235]
[1642249898602,3.41884905,3309.1,3309.0,0.76450495]
[1642249899053,3.41884905,3309.1,3309.0,9.10850495]
[1642249899553,3.41884905,3309.1,3309.0,7.56380495]
[1642249900454,3.41884905,3309.1,3309.0,10.45912127]
[1642249900953,3.41884905,3309.1,3309.0,7.56380495]
[1642249901152,3.41884905,3309.1,3309.0,10.45912127]
[1642249901354,1.49966283,3309.5,3309.1,5.9]
[1642249901655,0.00170527,3309.4,3309.3,0.75509]
[1642249901858,0.00170527,3309.4,3309.3,6.83297204]
[1642249902907,0.00170527,3309.4,3309.3,7.28602384]
[1642249903507,0.00170527,3309.4,3309.3,10.04350104]
[1642249904708,0.00170527,3309.4,3309.3,7.28602384]
[1642249904909,1.1140217,3309.4,3309.3,7.28602384]
[1642249905108,1.1140217,3309.4,3309.3,9.90129693]
[1642249905509,1.1140217,3309.4,3309.3,9.44824513]
[1642249906263,0.00170527,3309.4,3309.3,9.44824513]
[1642249908251,0.00170527,3309.4,3309.3,6.83297204]
[1642249909052,1.44524426,3309.4,3309.3,6.83297204]
[1642249911407,1.44524426,3309.4,3309.3,6.0436]
[1642249912406,1.44524426,3309.4,3309.0,0.72660235]
[1642249912407,4.68272495,3309.3,3309.0,0.72660235]
[1642249912606,0.017682,3309.2,3309.0,0.72660235]
[1642249912805,0.03389511,3309.2,3309.0,0.72660235]
[1642249913408,0.03389511,3309.2,3308.2,3.9492]
[1642249913409,5.366165,3309.1,3308.2,3.9492]
[1642249913605,3.32716453,3309.2,3308.1,0.82561133]
[1642249913606,0.75566,3308.8,3308.1,0.82561133]
[1642249913852,0.75566,3308.8,3308.3,0.00454738]
[1642249913853,0.023928,3308.6,3308.3,0.00454738]
[1642249914261,1.16053245,3308.5,3308.3,0.00454738]
[1642249914451,1.50546459,3308.4,3308.3,0.00454738]
[1642249915654,1.16962545,3308.5,3308.3,0.00454738]
[1642249915854,1.16962545,3308.5,3308.3,0.76005738]
[1642249915855,1.11053245,3308.5,3308.3,0.76005738]
[1642249916153,1.11053245,3308.5,3308.4,0.00397896]
[1642249918800,1.11053245,3308.5,3308.1,0.00568423]
[1642249919001,0.62222045,3308.5,3308.1,0.00568423]
[1642249919200,0.62222045,3308.5,3308.2,0.75556]
[1642249920401,0.011688,3308.5,3308.2,0.75556]
[1642249920602,0.011688,3308.5,3308.2,0.7949905]
[1642249920803,0.011688,3308.5,3308.2,0.75556]
[1642249921258,0.011688,3308.5,3308.2,0.79048657]
[1642249921652,1.45540919,3308.4,3308.2,0.79048657]
[1642249922053,1.45540919,3308.4,3308.2,0.75556]
[1642249922054,4.0395402,3308.4,3308.2,0.75556]
[1642249922456,4.0395402,3308.4,3308.2,0.79200298]
[1642249922660,4.0395402,3308.4,3308.2,0.75556]
[1642249922858,2.58413101,3308.3,3308.2,0.75556]
[1642249923258,2.58413101,3308.3,3308.2,0.76067581]
[1642249924158,2.58413101,3308.3,3308.2,0.7951512]
[1642249924357,2.58413101,3308.3,3308.2,0.76067581]
[1642249925006,2.58413101,3308.3,3308.2,0.00511581]
[1642249925505,2.58413101,3308.3,3308.2,0.76062581]
[1642249925706,2.58413101,3308.3,3308.2,0.79373057]
[1642249925906,2.58413101,3308.3,3308.2,0.79884638]
[1642249927409,2.58413101,3308.3,3308.2,0.76062581]
[1642249927610,2.58413101,3308.3,3308.2,0.79512763]
[1642249927911,2.58413101,3308.3,3308.2,0.76062581]
[1642249928854,2.58413101,3308.3,3308.2,0.79564082]
[1642249930658,2.58413101,3308.3,3308.2,0.76062581]
[1642249931456,2.58413101,3308.3,3308.2,0.79111267]
[1642249935307,2.58413101,3308.4,3308.2,0.79111267]
[1642249936363,2.58413101,3308.4,3308.2,0.76062581]
[1642249936555,2.58413101,3308.4,3308.2,0.79146445]
[1642249936753,2.58413101,3308.4,3308.2,0.79625824]
[1642249937854,2.58413101,3308.4,3308.2,0.76062581]
[1642249938255,2.58413101,3308.4,3308.2,0.79713938]
[1642249938454,2.58413101,3308.4,3308.2,0.76062581]
[1642249938654,2.58413101,3308.4,3308.2,0.79557328]
[1642249938855,1.3329218,3308.3,3308.2,0.76062581]
[1642249939056,1.3329218,3308.3,3308.2,0.79978337]
[1642249939255,2.58413101,3308.4,3308.2,0.76062581]
[1642249939655,2.58413101,3308.4,3308.2,0.79930346]
[1642249939855,2.58413101,3308.4,3308.2,0.76062581]
[1642249940303,2.58413101,3308.4,3308.2,0.79313886]
[1642249940504,2.58413101,3308.4,3308.2,0.76062581]
[1642249940707,1.4074135,3308.3,3308.2,0.76062581]
[1642249940903,1.4074135,3308.3,3308.2,0.79820016]
[1642249941311,2.58413101,3308.4,3308.2,0.79820016]
[1642249941509,0.023928,3308.6,3308.3,5.9]
[1642249941703,2.26810502,3309.0,3308.5,0.78698184]
[1642249941903,2.26810502,3309.0,3308.6,6.0448]
[1642249942103,2.26810502,3309.0,3308.6,6.08273317]
[1642249942303,2.26810502,3309.0,3308.7,3.68851348]
[1642249942506,3.78465158,3309.0,3308.8,4.7459157]
[1642249942705,2.75781132,3309.0,3308.8,0.03246104]
[1642249942906,2.75781132,3309.0,3308.8,0.75700527]
[1642249943104,2.75781132,3309.0,3308.9,0.00113684]
[1642249944161,1.24126476,3309.0,3308.9,0.00113684]
[1642249944560,1.24126476,3309.0,3308.8,0.00170527]
[1642249945162,2.52509292,3309.0,3308.8,0.00170527]
[1642249945560,2.75781132,3309.0,3308.8,0.00170527]
[1642249946763,2.03367133,3308.9,3308.8,0.00170527]
[1642249947163,2.06220133,3308.9,3308.8,0.00170527]
[1642249948002,2.03367133,3308.9,3308.8,0.00170527]
[1642249950206,0.51712477,3308.9,3308.8,0.00170527]
[1642249950604,0.52908977,3308.9,3308.8,0.00170527]
[1642249951265,0.51712477,3308.9,3308.8,0.00170527]
[1642249951855,2.03367133,3308.9,3308.8,0.00170527]
[1642249953256,1.51654656,3308.9,3308.8,0.00170527]
[1642249954257,1.53103256,3308.9,3308.8,0.00170527]
[1642249955300,1.51654656,3308.9,3308.8,0.00170527]
[1642249956101,1.51654656,3309.1,3308.8,0.00170527]
[1642249956308,1.51654656,3309.1,3308.9,0.75535]
[1642249956506,1.51654656,3309.1,3308.9,0.79070403]
[1642249957305,0.013249,3309.0,3308.8,1.40941689]
[1642249957703,0.013249,3309.0,3308.9,0.00113684]
[1642249957903,1.52563956,3309.2,3308.9,0.00113684]
[1642249958303,1.51654656,3309.0,3308.9,0.00113684]
[1642249958758,1.51654656,3309.0,3308.9,0.7879453]
[1642249959155,1.51654656,3309.1,3308.9,0.7879453]
[1642249959952,1.51654656,3309.2,3308.9,0.7879453]
[1642249961153,1.52792756,3309.2,3308.9,0.7879453]
[1642249961553,1.51654656,3309.1,3308.9,0.7879453]
[1642249961953,0.020087,3309.0,3308.9,0.7879453]
[1642249962354,1.52563956,3309.1,3308.9,0.7879453]
[1642249962601,4.10962176,3309.1,3309.0,0.12919911]
[1642249962804,4.10052876,3309.1,3309.0,0.12919911]
[1642249963005,1.51654656,3309.1,3308.9,0.7879453]
[1642249963208,2.03365677,3309.1,3308.9,0.7879453]
[1642249963702,0.015894,3309.0,3308.9,0.75653684]
[1642249963905,1.51654656,3309.0,3308.9,0.75653684]
[1642249964102,2.65588971,3309.0,3308.9,0.75653684]
[1642249964406,1.51654656,3309.0,3308.9,0.79276146]
[1642249964603,2.03365677,3309.0,3308.9,0.92196174]
[1642249964903,3.10109241,3309.0,3308.9,0.92196174]
[1642249965105,3.10109241,3309.0,3308.9,0.16260287]
[1642249965106,3.11545441,3309.0,3308.9,0.16260287]
[1642249965306,3.11545441,3309.0,3308.9,0.13033712]
[1642249965504,4.24659173,3309.0,3308.9,0.13033712]
[1642249965704,4.23222973,3309.0,3308.9,0.13033712]
[1642249965905,5.74877629,3309.0,3308.9,0.13033712]
[1642249966104,5.23166608,3309.0,3308.9,0.13033712]
[1642249966366,4.10052876,3309.0,3308.9,0.13033712]
[1642249966964,4.11791176,3309.0,3308.9,0.13033712]
[1642249967362,4.06666991,3309.0,3308.9,0.13033712]
[1642249967559,4.58378925,3309.0,3308.9,0.13033712]
[1642249968259,6.10033581,3309.0,3308.9,0.00113684]
[1642249969063,4.58378925,3309.0,3308.9,0.00113684]
[1642249970205,6.0969342,3309.0,3308.9,0.00113684]
[1642249970404,6.0969342,3309.0,3308.8,0.00170527]
[1642249970603,4.63162949,3309.0,3308.8,0.00170527]
[1642249970804,4.61424649,3309.0,3308.8,0.75712527]
[1642249971205,3.10110154,3309.0,3308.9,0.00113684]
[1642249974552,3.10110154,3309.0,3308.9,0.13033322]
[1642249974854,2.5839822,3309.0,3308.9,0.13033322]
[1642249975453,2.5839822,3309.0,3308.9,0.00113684]
[1642249976253,2.5930752,3309.1,3308.9,0.00113684]
[1642249976856,2.5999202,3309.0,3308.9,0.00113684]
[1642249977255,2.5999202,3309.0,3308.8,0.00170527]
[1642249978905,2.5839822,3308.9,3308.8,0.00170527]
[1642249980707,2.6143692,3308.9,3308.8,0.00170527]
[1642249981106,4.12751415,3308.9,3308.8,0.00170527]
[1642249981360,4.09712715,3308.9,3308.8,0.00170527]
[1642249982158,4.12736915,3308.9,3308.8,0.00170527]
[1642249982856,4.64452572,3308.9,3308.8,0.00170527]
[1642249983256,3.13138077,3308.9,3308.8,0.00170527]
[1642249993206,5.39948579,3308.9,3308.8,0.00170527]
[1642249994010,3.13138077,3308.9,3308.8,0.00170527]
[1642249995008,3.11130977,3308.9,3308.8,0.00170527]
[1642249995410,5.37941479,3308.9,3308.8,0.00170527]
[1642249995811,5.39379179,3308.9,3308.8,0.00170527]
[1642249996272,3.12568677,3308.9,3308.8,0.00170527]
[1642249997055,5.39379179,3308.9,3308.8,0.00170527]
[1642250001508,5.36924379,3308.9,3308.8,0.00170527]
[1642250002107,4.62121841,3308.9,3308.8,0.00170527]
[1642250002706,4.63268741,3308.9,3308.8,0.00170527]
[1642250003957,4.62121841,3308.9,3308.8,0.00170527]
[1642250004157,3.10113877,3308.9,3308.8,0.00170527]
[1642250004957,3.14655777,3308.9,3308.8,0.00170527]
[1642250005158,3.14674677,3308.9,3308.8,0.00170527]
[1642250005361,3.10113877,3308.9,3308.8,0.00170527]
[1642250006062,3.11389777,3308.9,3308.8,0.00170527]
[1642250007259,3.11389777,3308.9,3308.7,6.0447]
[1642250007703,5.36924379,3308.9,3308.7,6.0447]
[1642250007905,0.51715657,3308.8,3308.7,6.0447]
[1642250008302,0.53542957,3308.8,3308.7,6.04697369]
[1642250008706,3.11941177,3308.8,3308.7,6.08342521]
[1642250009508,4.63684176,3308.8,3308.7,6.08342521]
[1642250010406,4.61856876,3308.8,3308.7,6.08342521]
[1642250010806,4.63250276,3308.8,3308.7,6.08342521]
[1642250012554,4.61856876,3308.8,3308.7,6.08342521]
[1642250014155,4.63093876,3308.8,3308.7,6.08342521]
[1642250014557,3.11350877,3308.8,3308.7,6.08342521]
[1642250016306,3.11350877,3308.8,3308.7,6.04697369]
[1642250017710,3.10113877,3308.8,3308.7,6.04697369]
[1642250019258,3.10113877,3308.8,3308.7,5.79697369]
[1642250019462,4.6324876,3308.8,3308.7,5.79697369]
[1642250019860,4.6469866,3308.8,3308.7,5.79697369]
[1642250020259,4.6224316,3308.8,3308.7,5.79697369]
[1642250020660,3.10113877,3308.8,3308.7,5.79697369]
[1642250022163,3.11422377,3308.8,3308.7,5.79697369]
[1642250022805,3.10113877,3308.8,3308.7,5.79697369]
[1642250026109,3.10113877,3308.8,3308.7,6.98637474]
[1642250027063,3.09203249,3308.8,3308.7,6.98637474]
[1642250028265,3.09203249,3308.8,3308.7,5.79697369]
[1642250028464,5.89693048,3308.8,3308.7,5.79697369]
[1642250028665,5.90973248,3308.8,3308.7,5.79697369]
[1642250029865,3.10483449,3308.8,3308.7,5.79697369]
[1642250030309,6.13330656,3308.8,3308.7,5.79697369]
[1642250030708,9.07699133,3308.8,3308.7,5.79697369]
[1642250033114,5.54046897,3308.8,3308.7,5.79697369]
[1642250033314,2.5967842,3308.8,3308.7,5.79697369]
[1642250034557,2.5839822,3308.8,3308.7,5.79697369]
[1642250034762,2.5839822,3308.8,3308.7,5.83260904]
[1642250035357,2.5839822,3308.8,3308.7,5.79697369]
[1642250035557,2.28906432,3308.9,3308.7,5.79697369]
[1642250036057,2.28906432,3308.9,3308.8,0.00170527]
[1642250036658,0.009093,3308.9,3308.8,0.00170527]
[1642250037508,2.28906432,3308.9,3308.8,0.00170527]
[1642250038507,0.009093,3308.9,3308.8,0.00170527]
[1642250039006,0.009093,3308.9,3308.8,1.27136207]
[1642250040408,0.009093,3308.9,3308.8,0.00170527]
[1642250042255,0.009093,3308.9,3308.8,1.56372405]
[1642250043456,0.009093,3308.9,3308.8,0.00170527]
[1642250045106,2.28906432,3309.0,3308.8,0.00170527]
[1642250046111,0.009093,3309.0,3308.9,1.35507511]
[1642250046610,0.009093,3309.0,3308.9,1.35621195]
[1642250047011,2.28906432,3309.0,3308.9,1.35621195]
[1642250047212,2.28906432,3309.0,3308.9,0.00113684]
[1642250047615,0.009093,3309.0,3308.8,0.00170527]
[1642250048014,0.51715581,3308.9,3308.8,0.00170527]
[1642250048614,0.51715581,3308.9,3308.8,1.16596205]
[1642250049657,0.52679081,3308.9,3308.8,1.16596205]
[1642250051357,2.80676213,3308.9,3308.8,1.16596205]
[1642250052358,0.52679081,3308.9,3308.8,1.16596205]
[1642250053107,2.80676213,3308.9,3308.8,1.16596205]
[1642250054510,5.39097447,3308.9,3308.8,1.16596205]
[1642250054713,3.11100315,3308.9,3308.8,1.16596205]
[1642250056267,0.52679081,3308.9,3308.8,1.16596205]
[1642250057058,5.39097447,3308.9,3308.8,1.16596205]
[1642250057662,5.38133947,3308.9,3308.8,1.16596205]
[1642250057860,0.51715581,3308.9,3308.8,1.16596205]
[1642250058962,3.10136815,3308.9,3308.8,1.16596205]
[1642250059862,0.51715581,3308.9,3308.8,1.16596205]
[1642250060312,0.52716681,3308.9,3308.8,1.16596205]
[1642250060512,0.54393081,3308.9,3308.8,1.16596205]
[1642250061513,3.12814315,3308.9,3308.8,1.16596205]
[1642250062014,3.11137915,3308.9,3308.8,1.16596205]
[1642250062213,3.10136815,3308.9,3308.8,1.16596205]
[1642250062415,3.11259015,3308.9,3308.8,1.16596205]
[1642250062616,3.13037515,3308.9,3308.8,0.00170527]
[1642250062817,6.89836241,3308.9,3308.8,0.00170527]
[1642250063015,5.2,3308.8,3308.1,4.7996]
[1642250063414,5.2,3308.8,3308.0,0.007556]
[1642250063415,0.040467,3308.2,3308.0,0.007556]
[1642250063615,0.033119,3308.1,3308.0,0.007556]
[1642250063867,0.51306933,3308.1,3308.0,0.007556]
[1642250064064,1.65421398,3308.1,3308.0,0.007556]
[1642250064860,1.64599706,3308.1,3308.0,0.007556]
[1642250065060,7.12439942,3308.1,3308.0,0.007556]
[1642250066461,8.26065548,3308.1,3308.0,0.007556]
[1642250066760,5.36646546,3308.1,3308.0,0.007556]
[1642250069313,6.22859373,3308.1,3308.0,0.007556]
[1642250070114,3.95119302,3308.1,3308.0,0.007556]
[1642250070714,3.08906475,3308.1,3308.0,0.007556]
[1642250071562,5.36559656,3308.1,3308.0,0.007556]
[1642250072362,3.08906475,3308.1,3308.0,0.007556]
[1642250073167,5.36559656,3308.1,3308.0,0.007556]
[1642250073470,8.2330377,3308.1,3308.0,0.007556]
[1642250074065,5.36559656,3308.1,3308.0,0.007556]
[1642250074269,5.36559656,3308.1,3307.3,6.38532261]
[1642250074467,4.51475136,3308.1,3307.3,6.38532261]
[1642250074666,3.08906475,3308.1,3307.4,0.00795792]
[1642250074867,3.08906475,3308.1,3307.3,6.29328053]
[1642250075109,0.00341054,3308.0,3307.3,6.29328053]
[1642250075515,0.00284211,3307.9,3307.3,6.29328053]
[1642250075909,0.00227369,3307.8,3307.3,6.29328053]
[1642250076311,0.00170527,3307.7,3307.3,6.24328053]
[1642250076513,0.00170527,3307.7,3307.4,0.75572]
[1642250076712,0.00113684,3307.6,3307.3,6.24328053]
[1642250077118,0.00170527,3307.7,3307.3,6.24328053]
[1642250077613,0.00113684,3307.6,3307.3,6.24328053]
[1642250078013,1.52005738,3307.8,3307.3,6.24328053]
[1642250078513,0.00170527,3307.7,3307.3,6.24328053]
[1642250078767,0.00170527,3307.7,3307.4,0.75572]
[1642250078954,1.51778369,3307.8,3307.4,0.75572]
[1642250078955,0.00113684,3307.6,3307.4,0.75572]
[1642250079255,0.00170527,3307.7,3307.4,0.75572]
[1642250079654,0.00113684,3307.6,3307.4,0.75572]
[1642250079854,0.00113684,3307.6,3307.3,6.27377817]
[1642250079855,0.00113684,3307.6,3307.3,5.03001156]
[1642250080055,0.00170527,3307.7,3307.3,5.03001156]
[1642250080255,0.00170527,3307.7,3307.3,4.99951392]
[1642250080455,0.00113684,3307.6,3307.3,4.99951392]
[1642250080858,1.37858375,3307.4,3307.3,4.99951392]
[1642250081456,2.71727483,3307.4,3307.3,4.99951392]
[1642250083613,5.30148717,3307.4,3307.3,4.99951392]
[1642250085013,5.81885038,3307.4,3307.3,4.99951392]
[1642250085213,4.4801593,3307.4,3307.3,4.99951392]
[1642250086267,5.60550536,3307.4,3307.3,4.99951392]
[1642250086661,8.47063326,3307.4,3307.3,4.99951392]
[1642250087061,5.60550536,3307.4,3307.3,4.99951392]
[1642250087261,5.60550536,3307.4,3307.0,1.2705]
[1642250087465,5.60550536,3307.4,3307.0,0.1]
[1642250087466,8.47457081,3307.4,3307.0,0.1]
[1642250087663,8.47457081,3307.4,3307.1,0.00170527]
[1642250088063,0.51736321,3307.3,3307.1,0.00170527]
[1642250088265,1.5158694,3307.2,3307.1,0.00170527]
[1642250088464,4.41194566,3307.2,3307.1,0.00170527]
[1642250088664,2.1869694,3307.2,3307.1,0.00170527]
[1642250089364,2.70433261,3307.2,3307.1,0.00170527]
[1642250090414,5.28854495,3307.2,3307.1,0.00170527]
[1642250092814,3.82267555,3307.2,3307.1,0.00170527]
[1642250095767,6.88161607,3307.2,3307.1,0.00170527]
[1642250096165,3.82267555,3307.2,3307.1,0.00170527]
[1642250098014,8.20018324,3307.2,3307.1,0.00170527]
[1642250098414,5.34116416,3307.2,3307.1,0.00170527]
[1642250098815,6.70574051,3307.2,3307.1,0.00170527]
[1642250100022,6.70574051,3307.2,3306.2,0.009093]
[1642250100023,5.95,3307.0,3306.2,0.009093]
[1642250100326,5.95,3307.0,3305.4,3.09775913]
[1642250100327,0.02266231,3306.2,3305.4,3.10556653]
[1642250100520,0.82236231,3306.2,3305.7,2.22382389]
[1642250100817,0.7997,3306.2,3305.8,0.00738951]
[1642250101017,1.38555768,3305.9,3305.8,0.00738951]
[1642250101277,1.31130829,3306.1,3305.3,2.788638]
[1642250101278,1.11932047,3305.6,3305.5,0.00909478]
[1642250101463,0.7997,3306.2,3305.5,0.00909478]
[1642250101663,0.7997,3306.2,3305.4,0.0096632]
[1642250102263,1.90049909,3306.2,3305.4,0.0096632]
[1642250102464,0.51755169,3306.1,3305.4,0.0096632]
[1642250102665,2.58421234,3305.6,3305.4,0.0096632]
[1642250103464,1.18508155,3305.5,3305.4,0.0096632]
[1642250104268,2.58421234,3306.0,3305.4,0.0096632]
[1642250104866,2.58421234,3305.5,3305.4,0.0096632]
[1642250105713,2.58421234,3305.5,3305.4,5.0096632]
[1642250105914,0.86259231,3306.5,3305.4,5.0096632]
[1642250105915,2.58421234,3306.2,3305.4,5.04493614]
[1642250106116,2.58421234,3306.2,3305.8,0.75602]
[1642250106515,2.58421234,3306.2,3305.9,1.12213721]
[1642250106915,2.58421234,3306.4,3306.0,0.00625266]
[1642250107522,2.58421234,3306.4,3306.0,0.76225266]
[1642250107715,1.39193248,3306.3,3306.0,0.76225266]
[1642250107915,1.39193248,3306.3,3306.1,0.00568424]
[1642250108515,2.58421234,3306.2,3306.1,0.00568424]
[1642250108771,2.58421234,3306.2,3305.4,4.97048778]
[1642250108963,3.71676916,3306.2,3305.4,6.5039509]
[1642250109163,1.39558878,3305.7,3305.4,6.5039509]
[1642250109365,1.39558878,3305.7,3305.5,0.75612]
[1642250109565,0.00341054,3306.1,3305.5,0.78838911]
[1642250109968,0.00284212,3306.0,3305.5,0.78838911]
[1642250110165,0.00284212,3306.0,3305.5,0.69046795]
[1642250110365,0.00227369,3305.9,3305.7,0.75608]
[1642250110864,0.00170527,3305.8,3305.7,0.75608]
[1642250111466,0.00170527,3305.8,3305.7,0.79571552]
[1642250111666,0.00170527,3305.8,3305.7,5.49571552]
[1642250112814,0.00170527,3305.8,3305.7,6.74571552]
[1642250113014,0.00170527,3305.8,3305.7,9.68942108]
[1642250113213,0.00170527,3305.8,3305.7,6.74571552]
[1642250114815,0.00170527,3305.8,3305.7,5.49571552]
[1642250115416,0.00170527,3305.8,3305.7,7.04729057]
[1642250117262,0.00170527,3305.8,3305.7,5.49571552]
[1642250118062,0.00170527,3305.8,3305.7,7.04729057]
[1642250119463,0.00170527,3305.8,3305.7,5.49571552]
[1642250121317,0.00170527,3305.8,3305.7,6.78550385]
[1642250121718,0.00170527,3305.8,3305.7,5.50653052]
[1642250124569,0.00170527,3305.8,3305.7,0.80653052]
[1642250124968,0.00170527,3305.8,3305.7,0.79571552]
[1642250125170,0.00170527,3305.8,3305.7,0.80481552]
[1642250125574,0.00170527,3305.8,3305.7,4.45481552]
[1642250125970,0.00170527,3305.8,3305.7,0.80481552]
[1642250126368,1.15254489,3306.4,3305.7,0.04873552]
[1642250126569,1.15254489,3306.4,3306.0,0.756]
[1642250126770,0.00284212,3306.3,3306.0,0.756]
[1642250127172,2.58583504,3306.3,3306.0,0.756]
[1642250128223,4.09512797,3306.3,3306.0,0.756]
[1642250129020,2.58583504,3306.3,3306.0,0.756]
[1642250129419,0.51747174,3306.2,3306.0,0.756]
[1642250130221,1.48079923,3306.1,3306.0,0.756]
[1642250130620,1.48079923,3306.1,3306.0,0.75713684]
[1642250130825,4.58410601,3306.1,3306.0,0.75713684]
[1642250131271,3.10330678,3306.1,3306.0,0.75713684]
[1642250131469,0.51747174,3306.1,3306.0,0.75713684]
[1642250131869,0.46747174,3306.1,3306.0,0.75713684]
[1642250132069,0.46747174,3306.1,3306.0,0.76624384]
[1642250132369,0.46747174,3306.1,3306.0,0.75713684]
[1642250132370,3.05330678,3306.1,3306.0,0.75713684]
[1642250132569,4.44581388,3306.1,3306.0,0.75713684]
[1642250132770,4.44581388,3306.1,3306.0,0.00113684]
[1642250133377,3.05330678,3306.1,3306.0,0.75707684]
[1642250134371,4.15505017,3306.1,3306.0,0.00113684]
[1642250135018,3.05330678,3306.1,3306.0,0.00113684]
[1642250138319,3.05330678,3306.1,3306.0,2.6590142]
[1642250138623,3.05330678,3306.1,3306.0,2.68932437]
[1642250139773,3.05330678,3306.1,3306.0,0.00113684]
[1642250146666,3.02830678,3306.1,3306.0,0.00113684]
[1642250147669,3.02830678,3306.1,3305.9,0.71992573]
[1642250147869,3.02830678,3306.1,3305.9,0.7557254]
[1642250148070,2.58583504,3306.1,3305.9,0.7557254]
[1642250148270,2.58583504,3306.1,3305.9,0.75487236]
[1642250148469,2.58583504,3306.1,3305.9,0.75624171]
[1642250148669,2.58583504,3306.0,3305.9,0.71992573]
[1642250148873,2.58583504,3306.0,3305.9,0.75109862]
[1642250149069,2.58583504,3306.0,3305.9,0.755272]
[1642250149269,2.58583504,3306.0,3305.9,0.71992573]
[1642250149469,2.58491102,3306.0,3305.9,0.75316843]
[1642250149670,0.00227369,3306.4,3305.9,0.75316843]
[1642250149671,2.58718471,3306.4,3305.9,0.75079911]
[1642250149870,2.58718471,3306.4,3306.1,0.75594]
[1642250150119,0.00170527,3306.3,3306.1,0.78615204]
[1642250150326,0.00170527,3306.3,3306.2,1.51179]
[1642250150522,2.58491102,3306.4,3306.2,1.51179]
[1642250152123,3.87380642,3306.7,3306.2,1.51179]
[1642250152325,3.01134882,3306.7,3306.2,1.51179]
[1642250152524,0.00341054,3306.6,3306.2,1.51179]
[1642250152925,0.00284211,3306.5,3306.2,1.51179]
[1642250153224,0.00227369,3306.4,3306.2,1.51179]
[1642250153625,1.50929293,3306.6,3306.2,1.51179]
[1642250153626,0.00170527,3306.3,3306.2,1.51179]
[1642250154471,0.00170527,3306.3,3306.1,0.75594]
[1642250154869,0.00113684,3306.2,3306.1,0.75594]
[1642250155671,1.11905662,3306.2,3306.1,0.75594]
[1642250159720,0.00113684,3306.2,3306.1,0.75594]
[1642250160725,0.00113684,3306.2,3306.1,2.30965366]
[1642250163575,0.00113684,3306.2,3306.1,0.75594]
[1642250164776,0.00113684,3306.2,3306.1,2.24237744]
[1642250165019,0.00113684,3306.2,3306.1,0.75594]
[1642250166620,0.00113684,3306.2,3306.1,2.13628177]
[1642250167520,0.51859953,3306.2,3306.1,2.13628177]
[1642250169771,0.51859953,3306.2,3306.1,0.75594]
[1642250172074,0.51859953,3306.2,3306.1,1.90586987]
[1642250177066,0.51176423,3306.2,3306.1,1.90586987]
[1642250178268,1.18607146,3306.5,3306.1,1.90586987]
[1642250178668,0.00113685,3306.4,3306.1,1.90586987]
[1642250179769,0.00113685,3306.4,3306.1,0.75594]
[1642250182820,0.00113685,3306.4,3306.1,0.3247037]
[1642250187829,0.00113685,3306.4,3305.9,0.120988]
[1642250188825,1.2602966,3306.3,3305.9,0.120988]
[1642250189826,0.01065392,3306.1,3305.9,0.120988]
[1642250190025,4.09954284,3306.2,3305.9,0.120988]
[1642250190632,4.09954284,3306.2,3305.3,2.788606]
[1642250190633,3.04628169,3306.1,3305.3,2.788606]
[1642250190829,0.014415,3305.8,3305.3,2.788606]
[1642250191027,0.014415,3305.8,3305.4,0.00454738]
[1642250191872,2.8282074,3305.7,3305.4,0.00454738]
[1642250192275,4.07521181,3305.7,3305.4,0.00454738]
[1642250193080,2.58608735,3305.6,3305.4,0.00454738]
[1642250193476,2.59599435,3305.6,3305.4,0.00454738]
[1642250194477,2.58608735,3305.5,3305.4,0.00454738]
[1642250194676,3.40338735,3305.5,3305.4,0.00454738]
[1642250195922,3.4,3305.4,3305.1,0.017607]
[1642250196123,7.25523612,3305.3,3304.6,0.43677366]
[1642250196323,7.25523612,3305.3,3304.2,2.33041301]
[1642250196324,4.85,3305.1,3304.2,2.33041301]
[1642250196522,3.85,3305.0,3304.0,8.07860602]
[1642250196722,1.92862066,3305.0,3304.3,0.00625266]
[1642250196925,1.28745488,3304.4,3304.3,0.00625266]
[1642250197123,2.26321642,3304.4,3304.0,7.38485868]
[1642250197322,2.16321642,3304.4,3304.0,3.10115602]
[1642250197523,2.16321642,3304.4,3304.1,0.00113685]
[1642250197925,0.2789,3304.6,3304.2,5.95]
[1642250198123,2.58608735,3305.5,3304.2,5.96240861]
[1642250198327,0.00113685,3304.5,3304.2,6.00128035]
[1642250198526,0.00568423,3305.3,3304.2,0.01240861]
[1642250198808,0.00568423,3305.3,3303.2,3.3275]
[1642250198809,0.03651795,3304.3,3303.4,1.01377191]
[1642250198989,0.03651795,3304.3,3303.4,0.01377191]
[1642250198990,4.08610057,3304.3,3303.4,0.01377191]
[1642250199185,1.09338595,3304.3,3303.9,0.02107]
[1642250199386,2.59518035,3304.4,3303.5,0.00341054]
[1642250199387,2.58608735,3304.4,3303.5,2.59541842]
[1642250199586,0.52177408,3304.2,3303.5,0.0359988]
[1642250199786,0.51779512,3304.2,3303.7,3.0145723]
[1642250199987,0.00341054,3304.1,3303.7,3.0145723]
[1642250200185,0.00341054,3304.1,3303.7,1.4689878]
[1642250200386,0.00284212,3304.0,3303.8,1.51273]
[1642250200786,0.00227369,3303.9,3303.8,1.51273]
[1642250201586,0.00227369,3303.9,3303.8,4.36273]
[1642250201786,0.00227369,3303.9,3303.8,6.92780464]
[1642250201987,2.53836104,3304.2,3303.8,1.51273]
[1642250202287,6.29111098,3304.9,3303.8,1.51273]
[1642250202288,0.00113685,3304.1,3303.8,1.51273]
[1642250202720,1.51345549,3304.5,3303.8,1.51273]
[1642250203122,0.00284212,3304.4,3303.8,1.51273]
[1642250203529,0.0022737,3304.3,3303.8,1.51273]
[1642250203921,1.21720174,3304.1,3303.8,1.51273]
[1642250204124,0.00170527,3304.2,3303.8,1.51273]
[1642250204322,0.00341055,3304.5,3303.8,1.51273]
[1642250204524,0.00341055,3304.5,3303.8,1.54530876]
[1642250204727,0.00284212,3304.4,3304.1,0.75631]
[1642250204924,0.52060368,3304.4,3304.1,0.75631]
[1642250205225,1.51572919,3304.3,3304.1,0.75631]
[1642250205424,1.51572919,3304.3,3304.1,2.02817265]
[1642250205623,0.00170527,3304.2,3304.1,0.75631]
[1642250207078,0.00170527,3304.2,3303.8,1.51273]
[1642250208283,0.039084,3303.9,3303.4,0.23399418]
[1642250208481,0.039084,3303.9,3303.1,0.35506018]
[1642250208684,0.039084,3303.9,3303.5,0.00227369]
[1642250209280,0.5735,3304.0,3303.5,0.00227369]
[1642250209481,1.12333779,3304.1,3303.5,0.00227369]
[1642250209880,1.12333779,3304.1,3303.1,17.63454738]
[1642250210127,1.12333779,3304.1,3303.2,0.00397896]
[1642250210327,1.41235823,3304.0,3303.2,0.00397896]
[1642250210530,1.41235823,3304.0,3303.1,18.39102738]
[1642250210726,1.41235823,3304.0,3303.2,0.00397896]
[1642250211526,1.41235823,3304.0,3303.5,0.75647]
[1642250211927,1.11079997,3304.2,3303.5,0.75647]